bitfinex-derivatives/quotes_ETHF0:USTF0_20250320
["timestamp","ask_amount","ask_price","bid_price","bid_amount"]
[1742470059655,0.00754432,1990.6,1990.5,3.07495]
[1742470059860,1.01264432,1990.6,1990.5,2.0698]
[1742470060062,1.01264432,1990.6,1990.5,1.4121]
[1742470061352,0.00754432,1990.6,1990.5,2.41725]
[1742470062858,0.00754432,1990.6,1990.5,1.4121]
[1742470063258,0.00754432,1990.6,1990.5,2.41725]
[1742470063464,0.00754432,1990.6,1990.5,1.4121]
[1742470063660,1.01264432,1990.6,1990.5,1.4121]
[1742470064557,0.00754432,1990.6,1990.5,2.41725]
[1742470066462,1.31924432,1990.6,1990.5,2.41725]
[1742470067461,0.00754432,1990.6,1990.5,2.41725]
[1742470068561,0.00754432,1990.6,1990.5,5.69625]
[1742470069566,1.4194,1991.0,1990.9,1.00495]
[1742470070266,1.4194,1991.0,1990.9,3.00855]
[1742470070662,3.21534432,1991.1,1991.0,1.0049]
[1742470070967,3.21534432,1991.1,1991.0,2.3258]
[1742470071560,4.22019432,1991.1,1991.0,1.3209]
[1742470071762,5.63959432,1991.1,1991.0,1.3209]
[1742470072969,1.00494,1991.0,1990.8,1.68316]
[1742470073271,3.03524,1991.0,1990.9,1.3628]
[1742470073669,3.73754,1991.0,1990.9,1.3628]
[1742470075066,1.00495,1990.9,1990.8,1.68317]
[1742470075363,1.3539,1990.9,1990.6,47.1396]
[1742470075562,1.00505,1990.7,1990.6,49.55657]
[1742470075763,1.00505,1990.7,1990.6,49.55656]
[1742470076358,1.00503,1990.8,1990.7,1.00503]
[1742470076562,1.00503,1990.8,1990.7,1.4119]
[1742470077466,1.00503,1990.8,1990.7,2.41695]
[1742470077669,2.35888,1990.9,1990.8,1.005]
[1742470077873,2.35888,1990.9,1990.8,2.4169]
[1742470078074,2.35888,1990.9,1990.8,1.4119]
[1742470079262,1.00505,1990.7,1990.6,47.1396]
[1742470079467,1.00505,1990.7,1990.6,48.4981]
[1742470079468,4.21285,1990.7,1990.6,48.4981]
[1742470079969,6.36474,1990.7,1990.3,0.00754432]
[1742470080174,1.00515,1990.5,1990.4,1.3585]
[1742470080574,2.38075,1990.5,1990.4,1.3585]
[1742470080877,1.3756,1990.5,1990.4,2.3637]
[1742470081070,8.13019,1990.7,1990.6,1.0051]
[1742470081269,3.273,1990.7,1990.6,1.0051]
[1742470081571,3.8674,1990.9,1990.5,2.0588]
[1742470081572,1.64928,1990.9,1990.8,1.005]
[1742470082163,3.2078,1991.0,1990.6,6.45765]
[1742470082372,3.2078,1991.0,1990.9,1.00495]
[1742470082771,1.00495,1990.9,1990.8,3.279]
[1742470083375,2.32905,1990.9,1990.8,3.279]
[1742470083575,2.32905,1990.9,1990.7,1.4101]
[1742470083576,1.005,1990.8,1990.7,1.4101]
[1742470083878,2.3291,1990.8,1990.7,1.4101]
[1742470084178,6.2043,1990.8,1990.7,1.4101]
[1742470084375,1.00505,1990.7,1990.6,0.6649]
[1742470084573,2.33475,1990.7,1990.6,3.03698]
[1742470084780,2.33475,1990.7,1990.6,2.0319]
[1742470084977,2.33475,1990.7,1990.6,2.3721]
[1742470085880,2.33475,1990.7,1990.6,1.367]
[1742470086781,2.33475,1990.7,1990.6,2.3721]
[1742470087179,1.0051,1990.6,1990.5,46.44]
[1742470087379,1.0051,1990.6,1990.3,0.00754432]
[1742470087380,1.0052,1990.4,1990.3,0.67694432]
[1742470087683,1.68218,1990.5,1990.4,1.0052]
[1742470087881,3.00838,1990.5,1990.4,2.3394]
[1742470088290,3.00838,1990.5,1990.4,1.3342]
[1742470088789,1.0052,1990.4,1990.3,2.01114432]
[1742470088991,2.3314,1990.4,1990.3,3.01639432]
[1742470089488,1.3262,1990.4,1990.3,3.01639432]
[1742470090087,8.14804,1990.6,1990.4,1.00515]
[1742470090288,1.3262,1990.5,1990.4,2.3394]
[1742470091490,3.277,1990.6,1990.5,1.00515]
[1742470091687,7.48993,1990.6,1990.5,1.00515]
[1742470091991,1.0052,1990.4,1990.3,0.67694432]
[1742470092589,2.0494,1990.5,1990.4,1.0052]
[1742470092789,7.48992,1990.6,1990.5,1.00515]
[1742470093093,6.4848,1990.6,1990.3,1.68216432]
[1742470093286,1.3731,1990.5,1990.3,1.68216432]
[1742470093883,2.37827,1990.5,1990.3,0.67694432]
[1742470094089,2.37827,1990.5,1990.4,1.0052]
[1742470094289,4.21294,1990.6,1990.3,0.67694432]
[1742470094486,3.2078,1990.6,1990.3,0.67694432]
[1742470094690,2.40069,1990.7,1990.3,3.19004432]
[1742470094886,2.40069,1990.7,1990.5,1.00512]
[1742470095083,1.0051,1990.6,1990.5,1.00512]
[1742470095491,1.00501,1990.8,1990.7,1.00503]
[1742470095789,1.00501,1990.8,1990.4,5.78299]
[1742470095790,2.40063,1990.8,1990.4,5.78299]
[1742470095999,2.40063,1990.8,1990.7,1.00505]
[1742470096495,5.60843,1990.8,1990.6,1.00506]
[1742470096697,1.3032,1990.7,1990.6,1.00506]
[1742470097295,4.2128,1990.8,1990.7,1.00505]
[1742470097488,2.30823,1990.8,1990.4,3.27]
[1742470097693,3.2078,1991.0,1990.4,5.783]
[1742470098000,5.5159,1991.0,1990.9,1.00495]
[1742470098198,5.5159,1991.0,1990.8,1.00496]
[1742470099000,4.511,1991.0,1990.7,1.70122]
[1742470099188,1.005,1990.8,1990.7,1.70122]
[1742470099394,1.005,1990.8,1990.7,0.6962]
[1742470099594,1.005,1990.8,1990.7,1.70125]
[1742470100095,1.3032,1990.9,1990.8,1.005]
[1742470100696,1.3032,1990.9,1990.7,1.70123]
[1742470100697,2.30819,1990.9,1990.7,1.70123]
[1742470100897,2.30819,1990.9,1990.8,1.005]
[1742470101599,1.3032,1990.9,1990.8,1.005]
[1742470101798,2.30815,1990.9,1990.8,1.005]
[1742470101999,1.3032,1990.9,1990.8,1.005]
[1742470103299,3.2078,1991.0,1990.9,1.00495]
[1742470103504,4.2127,1991.0,1990.9,1.00495]
[1742470103806,3.2078,1991.0,1990.9,1.00495]
[1742470104102,4.548,1991.0,1990.9,1.00495]
[1742470104902,5.55292,1991.0,1990.9,1.00495]
[1742470105095,5.55292,1991.0,1990.7,0.6962]
[1742470105301,5.55292,1991.0,1990.9,1.00495]
[1742470105605,1.00495,1990.9,1990.8,2.37547]
[1742470106000,2.31575,1990.9,1990.8,1.3705]
[1742470106202,2.31575,1990.9,1990.8,2.3755]
[1742470106407,1.3108,1990.9,1990.8,2.3755]
[1742470106704,3.2078,1991.0,1990.9,1.00495]
[1742470106904,4.5186,1991.0,1990.9,2.33025]
[1742470108009,5.5235,1991.0,1990.9,2.33025]
[1742470109109,4.5186,1991.0,1990.9,2.33025]
[1742470109407,1.00498,1990.9,1990.8,1.00498]
[1742470109606,2.35718,1990.9,1990.8,2.39738]
[1742470109803,1.3522,1990.9,1990.8,2.39738]
[1742470110504,2.35715,1990.9,1990.8,2.39738]
[1742470110909,1.3522,1990.9,1990.8,2.39738]
[1742470113310,2.35715,1990.9,1990.8,2.39738]
[1742470114806,2.35715,1990.9,1990.8,1.3924]
[1742470115010,2.35715,1990.9,1990.8,2.3974]
[1742470115911,1.3522,1990.9,1990.8,2.3974]
[1742470118412,2.35715,1990.9,1990.8,1.3924]
[1742470118714,1.0051,1990.6,1990.5,52.8968]
[1742470118905,1.00509,1990.7,1990.6,1.00508]
[1742470119213,1.0051,1990.6,1990.5,46.441]
[1742470119408,1.00509,1990.7,1990.6,1.00507]
[1742470119810,4.6178,1990.8,1990.7,1.00505]
[1742470121401,3.2078,1990.8,1990.7,1.00505]
[1742470121605,3.2078,1990.8,1990.7,1.66825]
[1742470122014,1.3755,1990.9,1990.8,1.005]
[1742470122212,1.3755,1990.9,1990.8,3.0484]
[1742470122915,2.38045,1990.9,1990.8,2.0434]
[1742470123914,2.38045,1990.9,1990.8,1.3356]
[1742470124304,1.00505,1990.7,1990.6,0.7078]
[1742470124509,1.00505,1990.7,1990.6,1.4059]
[1742470124918,3.62075,1990.7,1990.6,2.411]
[1742470125117,2.6157,1990.7,1990.6,2.411]
[1742470125316,1.2952,1990.7,1990.6,2.411]
[1742470125517,4.25199,1990.9,1990.6,2.411]
[1742470125518,4.25199,1990.9,1990.8,1.005]
[1742470126914,5.54719,1990.9,1990.8,2.4109]
[1742470127922,5.54719,1990.9,1990.8,1.4059]
[1742470128312,5.54719,1990.9,1990.8,2.4109]
[1742470130319,5.54719,1990.9,1990.8,3.0613]
[1742470132420,5.54719,1990.9,1990.8,2.0563]
[1742470133614,5.54719,1990.9,1990.8,1.4059]
[1742470133811,1.0051,1990.7,1990.6,1.00509]
[1742470134015,1.0051,1990.7,1990.6,2.29629]
[1742470134210,2.29442,1990.8,1990.7,1.00505]
[1742470134414,1.00502,1990.8,1990.7,2.29625]
[1742470136020,4.25199,1990.9,1990.8,1.005]
[1742470136208,4.25199,1990.9,1990.8,1.2937]
[1742470140421,4.25199,1990.9,1990.8,2.2987]
[1742470140820,1.00499,1990.9,1990.8,2.2987]
[1742470141524,6.4418,1991.0,1990.9,1.00495]
[1742470141717,6.4418,1991.0,1990.9,3.77095]
[1742470142024,7.4467,1991.0,1990.9,2.766]
[1742470142318,7.4467,1991.0,1990.9,3.77095]
[1742470144930,3.2078,1991.0,1990.9,3.77095]
[1742470145423,0.00754432,1991.1,1991.0,1.0049]
[1742470145619,0.00754432,1991.1,1991.0,2.3933]
[1742470149623,2.36696,1991.5,1991.4,1.0047]
[1742470150017,4.86423,1991.6,1991.4,1.0047]
[1742470150222,4.86423,1991.6,1991.5,2.0027]
[1742470150223,4.5701,1991.6,1991.5,2.0027]
[1742470150630,3.2078,1991.6,1991.5,3.00734]
[1742470150830,4.21239,1991.6,1991.5,3.00734]
[1742470151028,5.57469,1991.6,1991.5,2.0027]
[1742470151229,5.57469,1991.6,1991.5,2.6801]
[1742470151432,4.5701,1991.6,1991.5,3.68474]
[1742470153028,4.5701,1991.6,1991.5,2.6801]
[1742470153235,5.57469,1991.6,1991.5,3.68474]
[1742470153734,1.3623,1991.6,1991.5,3.68474]
[1742470155939,2.36689,1991.6,1991.5,2.6801]
[1742470156435,2.36689,1991.6,1991.5,3.68474]
[1742470156836,2.36689,1991.6,1991.5,2.6801]
[1742470157237,5.57469,1991.6,1991.5,1.3209]
[1742470157630,4.5701,1991.6,1991.5,2.32554]
[1742470157830,5.57469,1991.6,1991.5,2.32554]
[1742470158134,5.57469,1991.6,1991.5,1.3209]
[1742470158437,5.57469,1991.6,1991.5,2.32554]
[1742470159637,1.3623,1991.6,1991.5,2.32554]
[1742470159839,1.3623,1991.6,1991.5,3.01974]
[1742470160643,0.00502955,1991.7,1991.6,1.00459]
[1742470160937,0.00502955,1991.7,1991.6,3.04389]
[1742470162437,1.00956955,1991.7,1991.6,2.0393]
[1742470163833,1.00956955,1991.7,1991.6,3.04389]
[1742470164443,1.00956955,1991.7,1991.6,1.3959]
[1742470166240,1.00956955,1991.7,1991.6,2.40049]
[1742470166445,1.00956955,1991.7,1991.6,1.3959]
[1742470167544,1.00956955,1991.7,1991.6,2.40049]
[1742470167945,1.00956955,1991.7,1991.6,1.3959]
[1742470168145,1.00956955,1991.7,1991.6,2.40049]
[1742470168644,1.00956955,1991.7,1991.6,1.3959]
[1742470172142,2.40886955,1991.7,1991.6,1.3959]
[1742470175664,2.40886955,1991.7,1991.6,2.40049]
[1742470176163,1.00956955,1991.7,1991.6,2.40049]
[1742470176660,1.00956955,1991.7,1991.6,1.3959]
[1742470177064,2.37676955,1991.7,1991.6,1.3959]
[1742470178954,1.00464,1991.5,1991.4,3.86704432]
[1742470179663,1.00464,1991.5,1991.4,4.87174432]
[1742470180267,2.40834,1991.5,1991.4,4.87174432]
[1742470180659,2.40834,1991.5,1991.4,5.52884432]
[1742470180957,1.00464,1991.5,1991.4,5.52884432]
[1742470181157,1.00464,1991.5,1991.4,5.52878432]
[1742470181765,1.00464,1991.5,1991.4,1.31634432]
[1742470182768,1.00464,1991.5,1991.4,2.65444432]
[1742470183670,1.00464,1991.5,1991.4,3.65914432]
[1742470184371,0.00502955,1991.7,1991.5,1.00464]
[1742470184558,1.00961955,1991.7,1991.6,2.34269]
[1742470184871,0.00502955,1991.7,1991.6,2.34269]
[1742470186065,1.00956955,1991.7,1991.6,2.34269]
[1742470186367,1.00956955,1991.7,1991.6,1.3381]
[1742470186569,1.00956955,1991.7,1991.6,2.34269]
[1742470187271,0.00502955,1991.7,1991.6,2.34269]
[1742470188470,1.00956955,1991.7,1991.6,2.34269]
[1742470189473,1.00956955,1991.7,1991.6,5.55669]
[1742470190472,0.00502955,1991.7,1991.6,5.55669]
[1742470192975,3.2078,1992.2,1992.1,1.00431]
[1742470193171,1.00435,1992.1,1992.0,1.00436]
[1742470193874,1.00435,1992.1,1992.0,2.38436]
[1742470194075,2.36655,1992.1,1992.0,2.38436]
[1742470194273,2.36655,1992.1,1992.0,1.38]
[1742470195166,1.00449,1991.8,1991.7,1.00452]
[1742470195369,1.00449,1991.8,1991.7,1.69812]
[1742470195876,1.00449,1991.8,1991.7,1.69811]
[1742470196171,1.00449,1991.8,1991.7,0.6936]
[1742470196376,2.36668,1991.9,1991.7,3.0781]
[1742470196574,1.00448,1991.9,1991.8,1.38]
[1742470196774,4.5445,1992.0,1991.8,2.38449]
[1742470196775,5.54893,1992.0,1991.8,2.38449]
[1742470197073,5.54893,1992.0,1991.9,1.00444]
[1742470197377,5.54893,1992.0,1991.9,1.3422]
[1742470198377,1.00449,1991.8,1991.7,0.6936]
[1742470198676,1.00449,1991.8,1991.7,2.0358]
[1742470198977,4.5445,1992.0,1991.5,3.2078]
[1742470199178,4.5445,1992.0,1991.6,1.3422]
[1742470199370,5.54891,1992.0,1991.9,1.00444]
[1742470199677,4.87561,1992.0,1991.9,1.00444]
[1742470200071,4.21221,1992.0,1991.9,1.00444]
[1742470200375,1.00444,1991.9,1991.8,2.30205]
[1742470200570,3.2078,1992.0,1991.8,1.2976]
[1742470200882,4.2122,1992.0,1991.9,1.2976]
[1742470201780,4.9178,1992.0,1991.9,1.2976]
[1742470202077,4.9178,1992.0,1991.7,0.6956]
[1742470202078,1.00449,1991.8,1991.7,0.6956]
[1742470202476,1.00464,1991.5,1991.4,0.00754432]
[1742470202776,3.9276,1991.7,1991.4,1.01221432]
[1742470202980,1.00464,1991.5,1991.4,0.00754432]
[1742470203479,1.00464,1991.5,1991.4,1.31344432]
[1742470204182,4.21244,1991.5,1991.4,1.31344432]
[1742470204481,7.43344,1991.5,1991.4,0.00754432]
[1742470205785,2.51187,1991.3,1990.8,49.6258]
[1742470205981,5.58373,1991.2,1991.1,1.00485]
[1742470206175,1.00485,1991.1,1991.0,2.34156]
[1742470206379,5.58373,1991.2,1991.0,2.34156]
[1742470206678,5.58373,1991.2,1991.1,1.3367]
[1742470207776,1.0049,1991.0,1990.9,1.69065432]
[1742470208273,3.2078,1991.1,1991.0,1.0049]
[1742470208682,3.9038,1991.2,1991.1,1.00485]
[1742470209077,0.00754432,1991.3,1991.2,1.0048]
[1742470211278,1.0048,1991.2,1991.1,1.3548]
[1742470211484,0.00754432,1991.3,1991.1,1.3548]
[1742470211674,0.00754432,1991.3,1991.2,1.0048]
[1742470211880,0.00754432,1991.3,1991.1,2.35962]
[1742470212071,1.0048,1991.2,1991.1,1.3548]
[1742470212277,0.00754432,1991.3,1991.1,1.00485]
[1742470212477,0.00754432,1991.3,1991.2,1.0048]
[1742470212978,1.01229432,1991.3,1991.2,1.0048]
[1742470213678,0.00754432,1991.3,1991.2,1.0048]
[1742470213880,1.01232432,1991.3,1991.2,1.0048]
[1742470214080,0.00754432,1991.3,1991.2,1.0048]
[1742470215184,3.2078,1991.7,1991.4,1.0047]
[1742470215382,6.4368,1991.7,1991.6,1.00459]
[1742470215580,6.4368,1991.7,1991.5,2.39511]
[1742470215581,7.44138,1991.7,1991.5,2.39511]
[1742470215776,2.38879,1991.6,1991.5,2.39511]
[1742470216085,3.2078,1991.7,1991.6,1.00459]
[1742470216579,3.2078,1991.7,1991.5,1.3905]
[1742470216580,1.00459,1991.6,1991.5,1.3905]
[1742470216984,4.592,1991.7,1991.5,1.3905]
[1742470217184,2.38879,1991.6,1991.5,1.3905]
[1742470217491,2.38879,1991.6,1991.5,0.6855]
[1742470217785,1.3842,1991.6,1991.2,4.23378]
[1742470217984,1.00473,1991.4,1991.2,4.88498]
[1742470218285,1.3543,1991.3,1991.2,1.65598]
[1742470218981,0.6871,1991.5,1991.4,1.0047]
[1742470219687,1.69174,1991.5,1991.4,1.0047]
[1742470219883,0.6871,1991.5,1991.4,1.0047]
[1742470220280,2.0414,1991.5,1991.4,1.0047]
[1742470220480,2.0414,1991.5,1991.2,0.6512]
[1742470220681,1.3543,1991.4,1991.3,1.00475]
[1742470220983,0.6871,1991.5,1991.4,1.0047]
[1742470221289,1.996,1991.5,1991.4,1.0047]
[1742470221482,3.231,1991.6,1991.5,1.00464]
[1742470221682,5.54449,1991.6,1991.4,1.00465]
[1742470221883,2.31358,1991.5,1991.2,0.6512]
[1742470222083,2.31358,1991.5,1991.4,1.0047]
[1742470222384,4.23563,1991.6,1991.4,1.0047]
[1742470222684,7.1308,1991.7,1991.6,1.00459]
[1742470222985,8.13534,1991.7,1991.6,1.00459]
[1742470223186,6.4398,1991.9,1991.4,3.1675]
[1742470223389,7.0908,1991.9,1991.4,41.4558]
[1742470223586,1.00452,1991.8,1991.4,44.6878]
[1742470223789,7.0908,1991.9,1991.7,1.00451]
[1742470224187,1.00449,1991.8,1991.7,1.00451]
[1742470224385,1.00449,1991.8,1991.6,1.00455]
[1742470224583,7.0908,1991.9,1991.5,1.00462]
[1742470224782,1.00458,1991.7,1991.5,1.00464]
[1742470224983,7.0908,1991.9,1991.5,1.00464]
[1742470225185,7.0908,1991.9,1991.4,3.8878]
[1742470225486,1.00453,1991.8,1991.6,1.00456]
[1742470225689,1.00453,1991.8,1991.7,1.3528]
[1742470226387,8.09527,1991.9,1991.7,1.3528]
[1742470226686,8.09524,1991.9,1991.7,2.35731]
[1742470226884,3.8588,1991.9,1991.8,1.00449]
[1742470227087,7.0888,1991.9,1991.8,2.35729]
[1742470227887,0.651,1991.9,1991.8,2.35729]
[1742470228082,3.2078,1992.1,1992.0,1.00439]
[1742470228278,0.6441,1992.2,1992.1,1.00434]
[1742470229192,1.64839,1992.2,1992.1,1.3241]
[1742470229891,1.00434,1992.1,1992.0,0.00754432]
[1742470230284,4.21214,1992.1,1992.0,0.00754432]
[1742470231483,7.44514,1992.1,1992.0,0.00754432]
[1742470233492,7.44514,1992.1,1992.0,1.34364432]
[1742470234291,7.44514,1992.1,1992.0,0.00754432]
[1742470235494,2.51103,1992.0,1991.5,47.1247]
[1742470235791,1.3115,1992.0,1991.6,1.3361]
[1742470235983,1.3115,1992.0,1991.6,2.34066]
[1742470235984,1.00452,1991.8,1991.6,2.34066]
[1742470236185,1.70738,1991.9,1991.7,2.34064]
[1742470236492,1.70738,1991.9,1991.8,1.3293]
[1742470236695,0.7029,1991.9,1991.8,1.3293]
[1742470236899,0.7029,1991.9,1991.8,2.33379]
[1742470237096,1.70734,1991.9,1991.8,2.33379]
[1742470237298,0.7029,1991.9,1991.8,2.33379]
[1742470238590,0.00754432,1992.0,1991.9,1.00444]
[1742470238801,0.00754432,1992.0,1991.9,2.99134]
[1742470239191,1.01193432,1992.0,1991.9,2.99134]
[1742470240201,0.00754432,1992.0,1991.9,2.99134]
[1742470240502,1.01193432,1992.0,1991.9,2.99134]
[1742470241504,0.00754432,1992.0,1991.9,2.99134]
[1742470241698,1.01193432,1992.0,1991.9,2.99134]
[1742470242597,0.00754432,1992.0,1991.9,2.99134]
[1742470243900,3.228,1992.4,1991.9,6.19914]
[1742470244105,1.68375,1992.3,1992.2,1.00425]
[1742470244296,4.89155,1992.3,1992.2,1.00425]
[1742470244699,3.8873,1992.3,1992.2,1.00425]
[1742470245204,4.89154,1992.3,1992.2,1.00425]
[1742470245396,4.89154,1992.3,1992.1,1.3404]
[1742470245601,4.89157,1992.3,1992.2,1.00429]
[1742470247308,1.00429,1992.2,1992.1,2.34469]
[1742470247498,4.89158,1992.3,1992.2,1.00429]
[1742470247701,4.89158,1992.3,1992.2,1.4079]
[1742470248198,3.8873,1992.3,1992.2,2.41219]
[1742470248399,3.2078,1992.3,1992.2,2.41219]
[1742470248998,3.2078,1992.5,1992.4,1.00419]
[1742470249198,3.2078,1992.9,1992.5,2.51036]
[1742470249409,1.00404,1992.7,1992.6,2.33445]
[1742470249809,1.00404,1992.7,1992.6,1.3304]
[1742470250208,1.00404,1992.7,1992.6,2.33449]
[1742470250408,1.00404,1992.7,1992.6,1.3304]
[1742470250897,6.39086,1992.7,1992.4,1.00417]
[1742470251097,1.00415,1992.5,1992.4,2.33457]
[1742470251309,1.00412,1992.6,1992.5,1.00412]
[1742470251911,1.00414,1992.5,1992.4,2.33454]
[1742470252102,1.65074,1992.5,1992.4,2.33454]
[1742470252405,4.85854,1992.5,1992.4,1.3304]
[1742470252713,8.09154,1992.5,1992.4,1.3304]
[1742470253414,1.00423,1992.4,1992.3,1.00423]
[1742470253613,1.00423,1992.4,1992.3,2.31523]
[1742470254112,1.00423,1992.4,1992.3,1.311]
[1742470254514,1.00423,1992.4,1992.3,2.31524]
[1742470255217,2.42433,1992.4,1992.3,2.31524]
[1742470255715,1.4201,1992.4,1992.3,2.31524]
[1742470255916,1.65077,1992.5,1992.4,1.00419]
[1742470256118,4.87977,1992.5,1992.4,2.38289]
[1742470256916,8.08757,1992.5,1992.4,2.38289]
[1742470257116,8.08757,1992.5,1992.4,1.3787]
[1742470258314,1.00424,1992.3,1992.2,46.412]
[1742470258712,4.5657,1992.4,1992.1,2.38613]
[1742470258913,1.00429,1992.2,1992.1,2.38613]
[1742470259114,1.00426,1992.3,1992.2,1.00425]
[1742470259711,1.00426,1992.3,1992.2,2.40485]
[1742470260414,2.33996,1992.3,1992.2,1.4006]
[1742470260618,2.33996,1992.3,1992.2,2.40489]
[1742470261329,1.3357,1992.3,1992.2,2.40489]
[1742470261824,4.23422,1992.4,1992.3,1.00424]
[1742470262022,3.2078,1992.5,1992.4,1.00419]
[1742470262212,7.43989,1992.7,1992.6,1.00409]
[1742470262823,7.8357,1992.7,1992.6,1.00409]
[1742470263029,6.4358,1992.7,1992.6,1.00409]
[1742470263228,3.2078,1992.7,1992.6,2.96839]
[1742470264030,2.34103,1992.8,1992.7,1.00404]
[1742470264222,2.34099,1992.8,1992.7,1.3328]
[1742470264623,6.4368,1992.9,1992.7,1.3328]
[1742470264825,8.77775,1992.9,1992.8,1.00399]
[1742470265026,1.00399,1992.8,1992.7,1.3328]
[1742470265317,2.34099,1992.8,1992.7,1.3328]
[1742470266929,1.00404,1992.7,1992.6,2.34593432]
[1742470267127,6.17464,1992.7,1992.6,2.34593432]
[1742470267333,1.00402,1992.8,1992.7,1.00404]
[1742470267631,2.31902,1992.8,1992.7,1.00404]
[1742470267827,1.00404,1992.7,1992.6,2.34590432]
[1742470268133,2.31902,1992.8,1992.7,1.00404]
[1742470268431,2.31902,1992.8,1992.7,1.3343]
[1742470268832,2.31902,1992.8,1992.7,2.33834]
[1742470269226,2.31902,1992.8,1992.7,1.3343]
[1742470269431,2.31902,1992.8,1992.7,2.33834]
[1742470269834,2.31902,1992.8,1992.7,1.3343]
[1742470270634,2.31902,1992.8,1992.7,2.33834]
[1742470270935,2.31902,1992.8,1992.7,1.3343]
[1742470271127,2.31902,1992.8,1992.7,2.33834]
[1742470271326,2.31902,1992.8,1992.7,1.3343]
[1742470271526,2.31902,1992.8,1992.7,2.33834]
[1742470271736,4.21179,1992.9,1992.8,1.00399]
[1742470271930,7.43979,1992.9,1992.8,2.35539]
[1742470272125,7.43979,1992.9,1992.8,1.3514]
[1742470276439,1.00404,1992.7,1992.6,0.00754432]
[1742470276636,7.44184,1992.7,1992.6,1.38904432]
[1742470276940,1.00424,1992.3,1992.2,2.0615]
[1742470277132,1.00424,1992.3,1992.2,3.06576]
[1742470277333,1.00424,1992.3,1992.2,2.0615]
[1742470277633,1.3462,1992.3,1992.2,3.06579]
[1742470277834,3.2078,1992.4,1992.3,1.00424]
[1742470278039,4.56154432,1992.4,1992.3,2.38574]
[1742470278234,5.56573432,1992.4,1992.3,1.3815]
[1742470278542,4.56154432,1992.4,1992.3,2.38574]
[1742470278836,0.00754432,1992.4,1992.3,2.38574]
[1742470280439,7.1531,1992.8,1992.3,1.3815]
[1742470280637,7.1531,1992.8,1992.4,2.0085]
[1742470280838,1.00409,1992.6,1992.5,1.3441]
[1742470281336,1.00409,1992.6,1992.5,2.34824]
[1742470281743,1.00409,1992.6,1992.5,1.3441]
[1742470282041,2.30508,1992.7,1992.6,1.00409]
[1742470282235,1.00409,1992.6,1992.5,1.3441]
[1742470283636,1.00409,1992.6,1992.5,1.988]
[1742470283844,2.30508,1992.7,1992.6,1.00409]
[1742470284036,7.1531,1992.8,1992.7,1.00404]
[1742470284231,3.2078,1992.8,1992.7,1.00404]
[1742470284436,3.2078,1992.8,1992.7,1.68714]
[1742470286546,1.00404,1992.7,1992.6,1.4269]
[1742470286843,3.06694,1992.7,1992.6,1.4269]
[1742470287445,1.00424,1992.3,1992.2,55.599]
[1742470287644,1.00424,1992.3,1992.2,51.30149]
[1742470287942,1.00424,1992.3,1992.2,50.2972]
[1742470288342,1.00421,1992.4,1992.2,51.30146]
[1742470288743,1.00421,1992.4,1992.3,2.0498]
[1742470289149,1.3655,1992.5,1992.3,2.0498]
[1742470289336,2.36964,1992.5,1992.4,1.3806]
[1742470289942,1.00424,1992.3,1992.2,46.398]
[1742470290148,1.00429,1992.2,1992.1,1.38814432]
[1742470290349,1.3655,1992.2,1992.1,1.38814432]
[1742470290649,1.3655,1992.2,1992.1,2.39248432]
[1742470291040,2.36979,1992.2,1992.1,2.39248432]
[1742470291241,1.3655,1992.2,1992.1,2.39248432]
[1742470291441,2.36979,1992.2,1992.1,1.38814432]
[1742470292053,1.3655,1992.2,1992.1,2.39248432]
[1742470292855,2.36979,1992.2,1992.1,1.38814432]
[1742470293150,2.36979,1992.2,1992.1,2.39248432]
[1742470293753,2.36979,1992.2,1992.1,1.38814432]
[1742470295251,4.21208,1992.3,1992.1,1.38814432]
[1742470295453,3.2078,1992.3,1992.2,1.00429]
[1742470295749,3.2078,1992.6,1992.5,1.00414]
[1742470296446,3.2078,1992.6,1992.5,43.90024]
[1742470296652,3.2078,1992.6,1992.5,3.10024]
[1742470297043,4.21189,1992.6,1992.5,3.10024]
[1742470297250,4.21189,1992.6,1992.5,2.0961]
[1742470297444,4.21189,1992.6,1992.5,1.3959]
[1742470298146,4.21189,1992.6,1992.5,2.40004]
[1742470298448,3.2078,1992.6,1992.5,2.40004]
[1742470299453,4.21189,1992.6,1992.5,2.40004]
[1742470299660,4.21189,1992.6,1992.5,1.3959]
[1742470300546,3.2078,1992.6,1992.5,2.40004]
[1742470300955,4.21189,1992.6,1992.5,2.40004]
[1742470301251,3.2078,1992.6,1992.5,2.40004]
[1742470302059,1.00407,1992.7,1992.6,1.00409]
[1742470302353,1.00407,1992.7,1992.6,2.36039]
[1742470302556,2.34117,1992.7,1992.6,2.36039]
[1742470302753,2.34117,1992.7,1992.6,1.3563]
[1742470302955,1.3371,1992.7,1992.6,2.36039]
[1742470303362,2.34114,1992.7,1992.6,1.3563]
[1742470304156,1.00414,1992.5,1992.4,0.7041]
[1742470304352,1.00423,1992.4,1992.2,3.249]
[1742470304557,1.00427,1992.3,1992.2,1.00427]
[1742470304755,1.00429,1992.2,1992.1,46.40554432]
[1742470305261,1.00427,1992.3,1992.1,46.40554432]
[1742470305562,2.41427,1992.3,1992.2,1.00428]
[1742470305762,2.41427,1992.3,1992.2,1.3974]
[1742470306165,1.41,1992.3,1992.2,2.40169]
[1742470306663,4.25323,1992.4,1992.3,1.00424]
[1742470306860,4.25323,1992.4,1992.3,2.41284]
[1742470307166,4.25323,1992.4,1992.3,1.4086]
[1742470307363,7.46103,1992.4,1992.3,1.4086]